[Event "Titled Tuesday Blitz July 05 Late 2022"]
[White "Mikhalsky, Vladimir"]
[Black "Wachinger, Nikolas"]
[WhiteFideId "14144352"]
[BlackFideId "12962791"]
[WhiteElo "2301"]
[BlackElo "2253"]
[Result "0-1"]
[Round "07"]
[TimeControl "180+1"]
[Date "2022.07.06"]
[WhiteClock "0:00:08"]
[BlackClock "0:00:06"]

1. c4 {[%clk 0:02:52]}  Nf6 {[%clk 0:02:56]} 2. Nc3 {[%clk 0:02:51]}  g6 {[%clk 0:02:56]} 3. e4 {[%clk 0:02:50]}  d6 {[%clk 0:02:57]} 4. d4 {[%clk 0:02:51]}  Bg7 {[%clk 0:02:57]} 5. f3 {[%clk 0:02:51]}  O-O {[%clk 0:02:56]} 6. Be3 {[%clk 0:02:52]}  b6 {[%clk 0:02:55]} 7. Qd2 {[%clk 0:02:50]}  c5 {[%clk 0:02:52]} 8. d5 {[%clk 0:02:49]}  e6 {[%clk 0:02:52]} 9. O-O-O {[%clk 0:02:41]}  exd5 {[%clk 0:02:52]} 10. cxd5 {[%clk 0:02:37]}  a6 {[%clk 0:02:27]} 11. Bh6 {[%clk 0:02:36]}  b5 {[%clk 0:02:26]} 12. h4 {[%clk 0:02:27]}  Nbd7 {[%clk 0:02:17]} 13. h5 {[%clk 0:02:26]}  b4 {[%clk 0:01:52]} 14. Nce2 {[%clk 0:02:14]}  Ne5 {[%clk 0:01:32]} 15. Ng3 {[%clk 0:02:02]}  c4 {[%clk 0:01:12]} 16. Bxg7 {[%clk 0:01:58]}  Kxg7 {[%clk 0:01:12]} 17. hxg6 {[%clk 0:01:56]}  fxg6 {[%clk 0:01:13]} 18. Qh6+ {[%clk 0:01:36]}  Kg8 {[%clk 0:01:11]} 19. Nh3 {[%clk 0:01:33]}  c3 {[%clk 0:00:46]} 20. Ng5 {[%clk 0:01:23]}  Nf7 {[%clk 0:00:40]} 21. Qh4 {[%clk 0:01:10]}  Nxg5 {[%clk 0:00:30]} 22. Qxg5 {[%clk 0:01:10]}  Qa5 {[%clk 0:00:21]} 23. Bc4 {[%clk 0:00:58]}  cxb2+ {[%clk 0:00:20]} 24. Kb1 {[%clk 0:00:54]}  Bd7 {[%clk 0:00:19]} 25. Nf5 {[%clk 0:00:40]}  Qc5 {[%clk 0:00:12]} 26. Bb3 {[%clk 0:00:35]}  a5 {[%clk 0:00:12]} 27. Ne7+ {[%clk 0:00:26]}  Kf7 {[%clk 0:00:12]} 28. e5 {[%clk 0:00:25]}  Kxe7 {[%clk 0:00:08]} 29. exf6+ {[%clk 0:00:25]}  Kd8 {[%clk 0:00:08]} 30. Rxh7 {[%clk 0:00:19]}  Bf5+ {[%clk 0:00:07]} 31. Qxf5 {[%clk 0:00:14]}  gxf5 {[%clk 0:00:07]} 32. Ba4 {[%clk 0:00:14]}  Ra7 {[%clk 0:00:07]} 33. Rg7 {[%clk 0:00:10]}  Rxg7 {[%clk 0:00:05]} 34. fxg7 {[%clk 0:00:11]}  Rg8 {[%clk 0:00:06]} 35. Rh1 {[%clk 0:00:10]}  Rxg7 {[%clk 0:00:06]} 36. Rh8+ {[%clk 0:00:10]}  Kc7 {[%clk 0:00:07]} 37. Kxb2 {[%clk 0:00:08]}  Rxg2+ {[%clk 0:00:07]} 38. Kb1 {[%clk 0:00:08]}  Qg1+ {[%clk 0:00:06]} 0-1


[Site "https://www.chess.com"]

[Event "Titled Tuesday Blitz July 05 Late 2022"]
[White "Nguyen, Quoc Hy"]
[Black "Huber, Benedikt"]
[WhiteFideId "12410853"]
[BlackFideId "12923583"]
[WhiteElo "1938"]
[BlackElo "1979"]
[Result "1/2-1/2"]
[Round "07"]
[TimeControl "180+1"]
[Date "2022.07.05"]
[WhiteClock "0:00:07"]
[BlackClock "0:00:05"]

1. d4 {[%clk 0:03:00]}  Nf6 {[%clk 0:02:59]} 2. c4 {[%clk 0:03:00]}  e6 {[%clk 0:03:00]} 3. Nc3 {[%clk 0:03:00]}  Bb4 {[%clk 0:03:00]} 4. Qc2 {[%clk 0:03:00]}  O-O {[%clk 0:02:59]} 5. Bg5 {[%clk 0:03:00]}  c5 {[%clk 0:02:56]} 6. dxc5 {[%clk 0:02:59]}  Na6 {[%clk 0:02:56]} 7. a3 {[%clk 0:02:59]}  Bxc3+ {[%clk 0:02:52]} 8. Qxc3 {[%clk 0:03:00]}  Nxc5 {[%clk 0:02:47]} 9. Bxf6 {[%clk 0:02:59]}  Qxf6 {[%clk 0:02:45]} 10. Qxf6 {[%clk 0:02:59]}  gxf6 {[%clk 0:02:46]} 11. b4 {[%clk 0:03:00]}  Na6 {[%clk 0:01:27]} 12. g4 {[%clk 0:02:54]}  b6 {[%clk 0:01:24]} 13. Bg2 {[%clk 0:02:51]}  Rb8 {[%clk 0:01:25]} 14. e3 {[%clk 0:02:37]}  Bb7 {[%clk 0:01:24]} 15. Bxb7 {[%clk 0:02:28]}  Rxb7 {[%clk 0:01:25]} 16. Nf3 {[%clk 0:02:26]}  Rc7 {[%clk 0:01:25]} 17. Nd2 {[%clk 0:02:26]}  Nb8 {[%clk 0:01:25]} 18. Ke2 {[%clk 0:02:24]}  Nc6 {[%clk 0:01:25]} 19. f4 {[%clk 0:02:24]}  Ne7 {[%clk 0:01:15]} 20. Rhd1 {[%clk 0:02:19]}  d5 {[%clk 0:01:06]} 21. cxd5 {[%clk 0:02:12]}  Nxd5 {[%clk 0:01:07]} 22. Ne4 {[%clk 0:02:05]}  Rc4 {[%clk 0:01:00]} 23. Kf3 {[%clk 0:02:05]}  Rc2 {[%clk 0:00:51]} 24. h4 {[%clk 0:02:01]}  Rfc8 {[%clk 0:00:48]} 25. g5 {[%clk 0:01:49]}  Rh2 {[%clk 0:00:19]} 26. Nxf6+ {[%clk 0:01:30]}  Nxf6 {[%clk 0:00:18]} 27. gxf6 {[%clk 0:01:30]}  Rxh4 {[%clk 0:00:15]} 28. Rd7 {[%clk 0:01:31]}  Rh6 {[%clk 0:00:14]} 29. Rg1+ {[%clk 0:01:30]}  Kf8 {[%clk 0:00:11]} 30. Rc1 {[%clk 0:01:18]}  Re8 {[%clk 0:00:07]} 31. Rxa7 {[%clk 0:01:12]}  Rxf6 {[%clk 0:00:07]} 32. Ra6 {[%clk 0:01:03]}  e5 {[%clk 0:00:08]} 33. a4 {[%clk 0:00:59]}  exf4 {[%clk 0:00:08]} 34. exf4 {[%clk 0:00:59]}  Rd8 {[%clk 0:00:09]} 35. Rc4 {[%clk 0:00:56]}  Rd3+ {[%clk 0:00:08]} 36. Ke4 {[%clk 0:00:52]}  Rd1 {[%clk 0:00:06]} 37. b5 {[%clk 0:00:42]}  Re6+ {[%clk 0:00:06]} 38. Kf5 {[%clk 0:00:39]}  Rd5+ {[%clk 0:00:06]} 39. Kg4 {[%clk 0:00:39]}  Rg6+ {[%clk 0:00:05]} 40. Kf3 {[%clk 0:00:39]}  Re6 {[%clk 0:00:04]} 41. Rc6 {[%clk 0:00:38]}  Rd3+ {[%clk 0:00:04]} 42. Kg4 {[%clk 0:00:37]}  Re1 {[%clk 0:00:04]} 43. Raxb6 {[%clk 0:00:34]}  Rd5 {[%clk 0:00:03]} 44. a5 {[%clk 0:00:32]}  h5+ {[%clk 0:00:03]} 45. Kf3 {[%clk 0:00:29]}  Rd3+ {[%clk 0:00:03]} 46. Kf2 {[%clk 0:00:29]}  Ra1 {[%clk 0:00:03]} 47. Rb8+ {[%clk 0:00:20]}  Kg7 {[%clk 0:00:02]} 48. Ke2 {[%clk 0:00:15]}  Rg3 {[%clk 0:00:02]} 49. Kf2 {[%clk 0:00:14]}  Rd3 {[%clk 0:00:02]} 50. Rc2 {[%clk 0:00:11]}  Rxa5 {[%clk 0:00:01]} 51. b6 {[%clk 0:00:11]}  Rb3 {[%clk 0:00:02]} 52. Kg1 {[%clk 0:00:09]}  Rab5 {[%clk 0:00:02]} 53. Rc6 {[%clk 0:00:08]}  Rb2 {[%clk 0:00:03]} 54. Rd6 {[%clk 0:00:08]}  Ra5 {[%clk 0:00:03]} 55. Rd1 {[%clk 0:00:07]}  Rab5 {[%clk 0:00:03]} 56. Rd6 {[%clk 0:00:07]}  Ra5 {[%clk 0:00:04]} 57. Rd1 {[%clk 0:00:07]}  Rab5 {[%clk 0:00:05]} 58. Rd6 {[%clk 0:00:07]} 1/2-1/2


[Site "https://www.chess.com"]

[Event "Titled Tuesday Blitz July 05 Late 2022"]
[White "Oparin, Grigoriy"]
[Black "Sanal, Vahap"]
[WhiteFideId "24125890"]
[BlackFideId "6300545"]
[WhiteElo "2639"]
[BlackElo "2574"]
[Result "0-1"]
[Round "07"]
[TimeControl "180+1"]
[Date "2022.07.05"]
[WhiteClock "0:00:11"]
[BlackClock "0:00:06"]

1. d4 {[%clk 0:03:00]}  Nf6 {[%clk 0:02:57]} 2. c4 {[%clk 0:03:01]}  g6 {[%clk 0:02:54]} 3. Nf3 {[%clk 0:03:00]}  Bg7 {[%clk 0:02:54]} 4. g3 {[%clk 0:03:01]}  O-O {[%clk 0:02:53]} 5. Bg2 {[%clk 0:03:02]}  d6 {[%clk 0:02:54]} 6. Nc3 {[%clk 0:03:02]}  c6 {[%clk 0:02:55]} 7. O-O {[%clk 0:03:02]}  Qb6 {[%clk 0:02:56]} 8. e4 {[%clk 0:02:44]}  Bg4 {[%clk 0:02:54]} 9. Rb1 {[%clk 0:02:43]}  Qa6 {[%clk 0:02:31]} 10. Qd3 {[%clk 0:02:37]}  d5 {[%clk 0:02:17]} 11. Ne5 {[%clk 0:02:26]}  dxe4 {[%clk 0:02:13]} 12. Nxe4 {[%clk 0:02:18]}  Bf5 {[%clk 0:02:13]} 13. Bf4 {[%clk 0:02:01]}  Nbd7 {[%clk 0:01:50]} 14. Nxd7 {[%clk 0:02:00]}  Nxd7 {[%clk 0:01:51]} 15. Rbd1 {[%clk 0:01:45]}  Qxa2 {[%clk 0:01:42]} 16. b3 {[%clk 0:01:13]}  Qa5 {[%clk 0:01:36]} 17. h3 {[%clk 0:01:11]}  Rad8 {[%clk 0:01:19]} 18. Qe3 {[%clk 0:01:11]}  Bxe4 {[%clk 0:01:17]} 19. Bxe4 {[%clk 0:01:11]}  e6 {[%clk 0:01:13]} 20. h4 {[%clk 0:01:06]}  a6 {[%clk 0:01:09]} 21. Bf3 {[%clk 0:01:05]}  h5 {[%clk 0:00:59]} 22. Rfe1 {[%clk 0:00:57]}  Rfe8 {[%clk 0:00:50]} 23. Bg5 {[%clk 0:00:57]}  Bf6 {[%clk 0:00:43]} 24. Bh6 {[%clk 0:00:53]}  Nf8 {[%clk 0:00:43]} 25. d5 {[%clk 0:00:46]}  cxd5 {[%clk 0:00:36]} 26. cxd5 {[%clk 0:00:46]}  Qc3 {[%clk 0:00:25]} 27. Rd3 {[%clk 0:00:43]}  Qb4 {[%clk 0:00:23]} 28. Bxf8 {[%clk 0:00:37]}  Kxf8 {[%clk 0:00:19]} 29. Qe4 {[%clk 0:00:22]}  Qxe4 {[%clk 0:00:07]} 30. Rxe4 {[%clk 0:00:23]}  e5 {[%clk 0:00:04]} 31. d6 {[%clk 0:00:23]}  Re6 {[%clk 0:00:04]} 32. Rb4 {[%clk 0:00:21]}  b5 {[%clk 0:00:03]} 33. d7 {[%clk 0:00:17]}  Be7 {[%clk 0:00:03]} 34. Re4 {[%clk 0:00:17]}  f5 {[%clk 0:00:04]} 35. Re2 {[%clk 0:00:14]}  e4 {[%clk 0:00:05]} 36. Rd1 {[%clk 0:00:14]}  Kf7 {[%clk 0:00:05]} 37. Bg2 {[%clk 0:00:14]}  Rd6 {[%clk 0:00:05]} 38. Red2 {[%clk 0:00:13]}  Ke6 {[%clk 0:00:03]} 39. Rxd6+ {[%clk 0:00:13]}  Bxd6 {[%clk 0:00:04]} 40. Ra1 {[%clk 0:00:13]}  Rxd7 {[%clk 0:00:02]} 41. Rxa6 {[%clk 0:00:12]}  Rc7 {[%clk 0:00:03]} 42. Bf1 {[%clk 0:00:12]}  Rc1 {[%clk 0:00:03]} 43. Kg2 {[%clk 0:00:12]}  Ke5 {[%clk 0:00:03]} 44. Ra2 {[%clk 0:00:10]}  b4 {[%clk 0:00:03]} 45. Bc4 {[%clk 0:00:11]}  Bc5 {[%clk 0:00:03]} 46. Bf7 {[%clk 0:00:11]}  Kf6 {[%clk 0:00:03]} 47. Be8 {[%clk 0:00:11]}  Bd4 {[%clk 0:00:03]} 48. Rd2 {[%clk 0:00:10]}  Bc5 {[%clk 0:00:02]} 49. Bb5 {[%clk 0:00:09]}  Rc3 {[%clk 0:00:03]} 50. Ba4 {[%clk 0:00:09]}  Rd3 {[%clk 0:00:03]} 51. Rxd3 {[%clk 0:00:09]}  exd3 {[%clk 0:00:04]} 52. Bb5 {[%clk 0:00:09]}  d2 {[%clk 0:00:03]} 53. Be2 {[%clk 0:00:10]}  Ke5 {[%clk 0:00:04]} 54. f3 {[%clk 0:00:09]}  Kd4 {[%clk 0:00:05]} 55. g4 {[%clk 0:00:09]}  Kc3 {[%clk 0:00:04]} 56. gxh5 {[%clk 0:00:09]}  gxh5 {[%clk 0:00:04]} 57. Bd1 {[%clk 0:00:09]}  Be7 {[%clk 0:00:02]} 58. f4 {[%clk 0:00:09]}  Kb2 {[%clk 0:00:02]} 59. Kg3 {[%clk 0:00:06]}  Kc1 {[%clk 0:00:02]} 60. Bxh5 {[%clk 0:00:07]}  d1=Q {[%clk 0:00:02]} 61. Bxd1 {[%clk 0:00:08]}  Kxd1 {[%clk 0:00:03]} 62. h5 {[%clk 0:00:08]}  Bf6 {[%clk 0:00:04]} 63. h6 {[%clk 0:00:09]}  Kc2 {[%clk 0:00:05]} 64. Kf3 {[%clk 0:00:10]}  Kxb3 {[%clk 0:00:05]} 65. Ke3 {[%clk 0:00:11]}  Kc3 {[%clk 0:00:06]} 0-1


[Site "https://www.chess.com"]

[Event "Titled Tuesday Blitz July 05 Late 2022"]
[White "Papp, Levente"]
[Black "Vakhlamov, Igor L."]
[WhiteFideId "751243"]
[BlackFideId "24126748"]
[WhiteElo "2308"]
[BlackElo "2401"]
[Result "1/2-1/2"]
[Round "07"]
[TimeControl "180+1"]
[Date "2022.07.05"]
[WhiteClock "0:00:10"]
[BlackClock "0:00:18"]

1. c4 {[%clk 0:03:00]}  Nf6 {[%clk 0:02:59]} 2. Nc3 {[%clk 0:03:00]}  c5 {[%clk 0:02:59]} 3. e4 {[%clk 0:02:58]}  Nc6 {[%clk 0:02:59]} 4. g3 {[%clk 0:02:58]}  e6 {[%clk 0:03:00]} 5. Bg2 {[%clk 0:02:59]}  d5 {[%clk 0:03:00]} 6. cxd5 {[%clk 0:02:57]}  exd5 {[%clk 0:03:01]} 7. exd5 {[%clk 0:02:02]}  Nb4 {[%clk 0:03:01]} 8. d3 {[%clk 0:01:50]}  Nfxd5 {[%clk 0:02:38]} 9. Nxd5 {[%clk 0:01:41]}  Nxd5 {[%clk 0:02:39]} 10. Ne2 {[%clk 0:01:39]}  Be7 {[%clk 0:02:38]} 11. O-O {[%clk 0:01:39]}  O-O {[%clk 0:02:38]} 12. d4 {[%clk 0:01:40]}  Be6 {[%clk 0:01:45]} 13. dxc5 {[%clk 0:01:27]}  Bxc5 {[%clk 0:01:46]} 14. Nd4 {[%clk 0:01:26]}  Qb6 {[%clk 0:01:47]} 15. Nb3 {[%clk 0:01:23]}  Rfd8 {[%clk 0:01:32]} 16. Nxc5 {[%clk 0:01:21]}  Qxc5 {[%clk 0:01:33]} 17. Qh5 {[%clk 0:01:18]}  Rac8 {[%clk 0:01:27]} 18. Qh4 {[%clk 0:00:53]}  h6 {[%clk 0:01:22]} 19. Bxh6 {[%clk 0:00:46]}  gxh6 {[%clk 0:01:22]} 20. Qxh6 {[%clk 0:00:47]}  Qf8 {[%clk 0:01:18]} 21. Qh4 {[%clk 0:00:46]}  Qe7 {[%clk 0:01:14]} 22. Qa4 {[%clk 0:00:38]}  a6 {[%clk 0:01:13]} 23. Rfe1 {[%clk 0:00:37]}  Qf6 {[%clk 0:01:12]} 24. Rad1 {[%clk 0:00:29]}  Qxb2 {[%clk 0:00:54]} 25. Bxd5 {[%clk 0:00:21]}  Bxd5 {[%clk 0:00:47]} 26. Rxd5 {[%clk 0:00:21]}  Rxd5 {[%clk 0:00:30]} 27. Qg4+ {[%clk 0:00:21]}  Kh7 {[%clk 0:00:30]} 28. Qxc8 {[%clk 0:00:22]}  Qxa2 {[%clk 0:00:25]} 29. Qxb7 {[%clk 0:00:19]}  Rf5 {[%clk 0:00:24]} 30. Qe4 {[%clk 0:00:19]}  Qxf2+ {[%clk 0:00:24]} 31. Kh1 {[%clk 0:00:18]}  Qf3+ {[%clk 0:00:24]} 32. Qxf3 {[%clk 0:00:19]}  Rxf3 {[%clk 0:00:25]} 33. Ra1 {[%clk 0:00:18]}  Rf6 {[%clk 0:00:25]} 34. Ra5 {[%clk 0:00:18]}  Kg6 {[%clk 0:00:26]} 35. Kg2 {[%clk 0:00:18]}  Rb6 {[%clk 0:00:26]} 36. h4 {[%clk 0:00:18]}  f6 {[%clk 0:00:26]} 37. Kh3 {[%clk 0:00:17]}  f5 {[%clk 0:00:25]} 38. Kg2 {[%clk 0:00:15]}  Rc6 {[%clk 0:00:24]} 39. Kh3 {[%clk 0:00:14]}  Rb6 {[%clk 0:00:24]} 40. Kg2 {[%clk 0:00:15]}  Kf6 {[%clk 0:00:23]} 41. Kh3 {[%clk 0:00:14]}  Rc6 {[%clk 0:00:22]} 42. Kg2 {[%clk 0:00:11]}  Kg6 {[%clk 0:00:21]} 43. Kh3 {[%clk 0:00:10]}  Rf6 {[%clk 0:00:21]} 44. Kg2 {[%clk 0:00:10]}  Rb6 {[%clk 0:00:20]} 45. Kh3 {[%clk 0:00:11]}  Rd6 {[%clk 0:00:21]} 46. Kg2 {[%clk 0:00:11]}  Kf6 {[%clk 0:00:20]} 47. Kh3 {[%clk 0:00:11]}  Ke6 {[%clk 0:00:20]} 48. h5 {[%clk 0:00:11]}  Kf6 {[%clk 0:00:20]} 49. Kh4 {[%clk 0:00:12]}  Rd4+ {[%clk 0:00:20]} 50. Kh3 {[%clk 0:00:12]}  Rd6 {[%clk 0:00:20]} 51. Kh4 {[%clk 0:00:13]}  Rd4+ {[%clk 0:00:20]} 52. Kh3 {[%clk 0:00:13]}  Kg5 {[%clk 0:00:20]} 53. Rxa6 {[%clk 0:00:13]}  Kxh5 {[%clk 0:00:20]} 54. Ra5 {[%clk 0:00:13]}  Kg5 {[%clk 0:00:21]} 55. Ra8 {[%clk 0:00:14]}  Rd6 {[%clk 0:00:19]} 56. Ra5 {[%clk 0:00:14]}  Rh6+ {[%clk 0:00:19]} 57. Kg2 {[%clk 0:00:14]}  Rb6 {[%clk 0:00:20]} 58. Kh3 {[%clk 0:00:14]}  Rh6+ {[%clk 0:00:20]} 59. Kg2 {[%clk 0:00:15]}  Rh8 {[%clk 0:00:21]} 60. Rb5 {[%clk 0:00:14]}  Rh7 {[%clk 0:00:20]} 61. Ra5 {[%clk 0:00:14]}  Kg4 {[%clk 0:00:21]} 62. Ra4+ {[%clk 0:00:15]}  Kg5 {[%clk 0:00:21]} 63. Ra5 {[%clk 0:00:16]}  Rb7 {[%clk 0:00:21]} 64. Rc5 {[%clk 0:00:13]}  Rb4 {[%clk 0:00:21]} 65. Kh3 {[%clk 0:00:13]}  Ra4 {[%clk 0:00:21]} 66. Rb5 {[%clk 0:00:13]}  Ra3 {[%clk 0:00:21]} 67. Rc5 {[%clk 0:00:12]}  Ra4 {[%clk 0:00:22]} 68. Rb5 {[%clk 0:00:12]}  Rc4 {[%clk 0:00:22]} 69. Ra5 {[%clk 0:00:12]}  Kf6 {[%clk 0:00:22]} 70. Ra6+ {[%clk 0:00:12]}  Ke5 {[%clk 0:00:22]} 71. Ra5+ {[%clk 0:00:12]}  Ke4 {[%clk 0:00:23]} 72. Ra8 {[%clk 0:00:12]}  Rc3 {[%clk 0:00:22]} 73. Ra4+ {[%clk 0:00:12]}  Ke5 {[%clk 0:00:22]} 74. Ra5+ {[%clk 0:00:12]}  Kf6 {[%clk 0:00:22]} 75. Ra6+ {[%clk 0:00:13]}  Kg5 {[%clk 0:00:23]} 76. Ra5 {[%clk 0:00:13]}  Rb3 {[%clk 0:00:23]} 77. Rc5 {[%clk 0:00:13]}  Rb4 {[%clk 0:00:23]} 78. Ra5 {[%clk 0:00:13]}  Rc4 {[%clk 0:00:23]} 79. Rb5 {[%clk 0:00:13]}  Kf6 {[%clk 0:00:22]} 80. Rb6+ {[%clk 0:00:13]}  Ke5 {[%clk 0:00:23]} 81. Rb5+ {[%clk 0:00:13]}  Ke4 {[%clk 0:00:23]} 82. Rb8 {[%clk 0:00:13]}  Ra4 {[%clk 0:00:19]} 83. Rb3 {[%clk 0:00:12]}  Ra1 {[%clk 0:00:18]} 84. Rb4+ {[%clk 0:00:12]}  Ke5 {[%clk 0:00:19]} 85. Rb5+ {[%clk 0:00:13]}  Kf6 {[%clk 0:00:19]} 86. Rb6+ {[%clk 0:00:13]}  Kg5 {[%clk 0:00:20]} 87. Rb5 {[%clk 0:00:13]}  Rc1 {[%clk 0:00:19]} 88. Ra5 {[%clk 0:00:12]}  Rb1 {[%clk 0:00:19]} 89. Rc5 {[%clk 0:00:12]}  Rb3 {[%clk 0:00:20]} 90. Ra5 {[%clk 0:00:12]}  Kf6 {[%clk 0:00:20]} 91. Rc5 {[%clk 0:00:11]}  Ke6 {[%clk 0:00:20]} 92. Kg2 {[%clk 0:00:10]}  Ra3 {[%clk 0:00:19]} 93. Rb5 {[%clk 0:00:10]}  Kf6 {[%clk 0:00:19]} 94. Rc5 {[%clk 0:00:10]}  Rb3 {[%clk 0:00:19]} 95. Ra5 {[%clk 0:00:10]}  Kg5 {[%clk 0:00:20]} 96. Kh3 {[%clk 0:00:10]}  Kg6 {[%clk 0:00:17]} 97. Kg2 {[%clk 0:00:09]}  Kf6 {[%clk 0:00:17]} 98. Ra6+ {[%clk 0:00:08]}  Ke5 {[%clk 0:00:17]} 99. Ra5+ {[%clk 0:00:08]}  Ke4 {[%clk 0:00:17]} 100. Ra4+ {[%clk 0:00:09]}  Kd5 {[%clk 0:00:16]} 101. Ra5+ {[%clk 0:00:09]}  Ke6 {[%clk 0:00:17]} 102. Ra6+ {[%clk 0:00:09]}  Ke5 {[%clk 0:00:17]} 103. Ra5+ {[%clk 0:00:10]}  Kf6 {[%clk 0:00:18]} 1/2-1/2


[Site "https://www.chess.com"]

[Event "Titled Tuesday Blitz July 05 Late 2022"]
[White "Raja Rithvik R"]
[Black "Nazaretyan, Tigran"]
[WhiteFideId "35007394"]
[BlackFideId "24162345"]
[WhiteElo "2255"]
[BlackElo "2179"]
[Result "1-0"]
[Round "07"]
[TimeControl "180+1"]
[Date "2022.07.05"]
[WhiteClock "0:00:31"]
[BlackClock "0:00:22"]

1. Nf3 {[%clk 0:03:00]}  Nf6 {[%clk 0:02:51]} 2. b3 {[%clk 0:03:00]}  g6 {[%clk 0:02:49]} 3. Bb2 {[%clk 0:03:01]}  Bg7 {[%clk 0:02:49]} 4. e3 {[%clk 0:03:01]}  O-O {[%clk 0:02:48]} 5. Be2 {[%clk 0:02:59]}  c5 {[%clk 0:02:48]} 6. O-O {[%clk 0:02:58]}  d5 {[%clk 0:02:47]} 7. a4 {[%clk 0:02:52]}  Nc6 {[%clk 0:02:37]} 8. Ne5 {[%clk 0:02:52]}  Qc7 {[%clk 0:02:28]} 9. Nxc6 {[%clk 0:02:52]}  Qxc6 {[%clk 0:02:29]} 10. f4 {[%clk 0:02:52]}  Re8 {[%clk 0:02:21]} 11. Bb5 {[%clk 0:02:50]}  Qc7 {[%clk 0:02:19]} 12. Bxe8 {[%clk 0:02:48]}  Nxe8 {[%clk 0:02:19]} 13. Bxg7 {[%clk 0:02:49]}  Nxg7 {[%clk 0:02:20]} 14. d3 {[%clk 0:02:46]}  Nf5 {[%clk 0:02:14]} 15. Qd2 {[%clk 0:02:38]}  d4 {[%clk 0:02:13]} 16. e4 {[%clk 0:02:38]}  Ne3 {[%clk 0:02:12]} 17. Rf2 {[%clk 0:02:38]}  f5 {[%clk 0:02:05]} 18. Na3 {[%clk 0:02:29]}  Be6 {[%clk 0:02:03]} 19. exf5 {[%clk 0:02:21]}  gxf5 {[%clk 0:02:01]} 20. Nc4 {[%clk 0:02:21]}  Bxc4 {[%clk 0:02:01]} 21. bxc4 {[%clk 0:02:22]}  Kh8 {[%clk 0:01:51]} 22. Re1 {[%clk 0:02:20]}  Rg8 {[%clk 0:01:47]} 23. Rxe3 {[%clk 0:02:20]}  dxe3 {[%clk 0:01:46]} 24. Qxe3 {[%clk 0:02:21]}  Rg7 {[%clk 0:01:44]} 25. Qe6 {[%clk 0:02:18]}  Qa5 {[%clk 0:01:33]} 26. Qxf5 {[%clk 0:02:13]}  Qe1+ {[%clk 0:01:31]} 27. Rf1 {[%clk 0:02:12]}  Qe3+ {[%clk 0:01:28]} 28. Kh1 {[%clk 0:02:05]}  Qe2 {[%clk 0:01:26]} 29. Rg1 {[%clk 0:02:02]}  Qxc2 {[%clk 0:01:20]} 30. Qf8+ {[%clk 0:02:00]}  Rg8 {[%clk 0:01:20]} 31. Qxe7 {[%clk 0:02:01]}  Qxd3 {[%clk 0:01:17]} 32. Qxc5 {[%clk 0:01:56]}  b6 {[%clk 0:01:17]} 33. Qe5+ {[%clk 0:01:52]}  Rg7 {[%clk 0:01:16]} 34. Qb8+ {[%clk 0:01:43]}  Rg8 {[%clk 0:01:15]} 35. Qe5+ {[%clk 0:01:43]}  Rg7 {[%clk 0:01:14]} 36. Qd5 {[%clk 0:01:41]}  Qe3 {[%clk 0:01:07]} 37. f5 {[%clk 0:01:41]}  Qf4 {[%clk 0:01:02]} 38. Re1 {[%clk 0:01:39]}  h6 {[%clk 0:01:00]} 39. h3 {[%clk 0:01:36]}  Qf2 {[%clk 0:00:59]} 40. Rd1 {[%clk 0:01:19]}  Kh7 {[%clk 0:00:53]} 41. Qe4 {[%clk 0:01:19]}  h5 {[%clk 0:00:39]} 42. f6+ {[%clk 0:00:39]}  Rg6 {[%clk 0:00:38]} 43. f7 {[%clk 0:00:39]}  Qxf7 {[%clk 0:00:36]} 44. Rd6 {[%clk 0:00:39]}  Kh6 {[%clk 0:00:26]} 45. Qxg6+ {[%clk 0:00:38]}  Qxg6 {[%clk 0:00:27]} 46. Rxg6+ {[%clk 0:00:39]}  Kxg6 {[%clk 0:00:28]} 47. Kh2 {[%clk 0:00:38]}  Kg5 {[%clk 0:00:25]} 48. Kg3 {[%clk 0:00:36]}  a5 {[%clk 0:00:24]} 49. h4+ {[%clk 0:00:33]}  Kf5 {[%clk 0:00:23]} 50. Kf3 {[%clk 0:00:33]}  Ke5 {[%clk 0:00:22]} 51. g4 {[%clk 0:00:34]}  hxg4+ {[%clk 0:00:20]} 52. Kxg4 {[%clk 0:00:35]}  Kd4 {[%clk 0:00:19]} 53. h5 {[%clk 0:00:35]}  Kxc4 {[%clk 0:00:20]} 54. h6 {[%clk 0:00:36]}  Kb4 {[%clk 0:00:21]} 55. h7 {[%clk 0:00:36]}  Kxa4 {[%clk 0:00:22]} 56. h8=Q {[%clk 0:00:36]}  b5 {[%clk 0:00:22]} 57. Qa1+ {[%clk 0:00:36]}  Kb4 {[%clk 0:00:22]} 58. Qb2+ {[%clk 0:00:36]}  Ka4 {[%clk 0:00:22]} 59. Kf4 {[%clk 0:00:36]}  b4 {[%clk 0:00:22]} 60. Ke4 {[%clk 0:00:37]}  b3 {[%clk 0:00:23]} 61. Qc3 {[%clk 0:00:31]}  Ka3 {[%clk 0:00:23]} 62. Qxa5+ {[%clk 0:00:31]}  Kb2 {[%clk 0:00:23]} 63. Kd3 {[%clk 0:00:32]}  Kc1 {[%clk 0:00:22]} 64. Qa1# {[%clk 0:00:31]} 1-0


[Site "https://www.chess.com"]